[Event "13th KIIT Festival-A 2022"]
[Site "Bhubaneswar"]
[Date "2022.05.24"]
[Round "3.9"]
[White "Rakesh, Kumar Nayak"]
[Black "Rahman, Ziaur"]
[Result "1/2-1/2"]
[ECO "A13"]
[WhiteElo "2053"]
[BlackElo "2431"]
[Annotator "TA"]
[PlyCount "169"]
[EventDate "2022.05.15"]
[EventType "swiss"]
[EventCountry "IND"]
[SourceTitle "playchess.com"]
[Source "ChessBase"]
[SourceQuality "1"]
[TimeControl "5400+30"]

{[%evp 11,169,0,0,-2,16,-7,21,30,18,14,12,-15,0,-6,-20,-7,0,0,0,0,0,0,0,-10,-18,-9,-22,-54,52,69,63,66,68,0,0,0,0,0,0,0,0,0,-14,-33,-12,-58,-21,-21,-25,-34,-24,-28,-21,-28,0,0,15,6,31,31,29,31,101,97,177,177,150,181,150,0,0,0,9,24,17,-6,-6,-56,-51,-79,-78,-73,-78,-78,29972,-38,-56,-56,-49,-95,-95,-95,-95,-95,-95,-95,-95,-95,-95,-95,-95,-95,-95,-95,-95,-95,-8,-95,-95,-95,-55,-95,-95,-95,-95,-95,-95,-95,-95,-95,0,-55,-32,-55,-55,-77,-77,-91,-42,-91,-42,-42,-42,-91,-42,-91,-91,-91,-91,-91,-91,-91,-91,-91,-91,-91,-91,-91,-91,-91,-91,-91,-91,-91,-91,-91,-91,-91,-42,-42]} 1. c4 {[%emt 0:00:45]} e6 {[%emt 0:00:51]} 2. g3 {[%emt 0:00:10]} d5 {[%emt 0:00:08]} 3. Bg2 {[%emt 0:00:06]} Nf6 {[%emt 0:00:17]} 4. Nf3 {[%emt 0:00:08]} dxc4 {[%emt 0:00:39]} 5. Na3 {[%emt 0:07:07]} Bxa3 {[%emt 0:02:25]} 6. bxa3 {[%emt 0:00:02]} O-O {[%emt 0:02:56]} 7. Qc2 {[%emt 0:01:42] A13: English Opening: 1...e6.} Nc6 {[%emt 0:04:28]} 8. Bb2 {[%emt 0:01:29]} Qd6 {[%emt 0:10:18]} 9. Qxc4 {[%emt 0:08:24] The position is equal.} e5 {[%emt 0:03:15]} 10. d3 {[%emt 0:25:28] [#]} Be6 $146 {[%emt 0:03:33]} ({Predecessor:} 10... Rb8 11. Rc1 Be6 12. Qc5 Bd5 13. O-O Rfe8 14. d4 e4 15. Ne5 Bxa2 16. f3 e3 {0-1 (40) Bagri,J (2200)-Carron,J (2355) Leukerbad 2011}) 11. Qc3 {[%emt 0:04:16][%cal Rf3e5]} Nd5 {[%emt 0:02:59]} 12. Qd2 {[%emt 0:04:33]} Rad8 {[%emt 0:02:21]} 13. O-O {[%emt 0:04:16]} f6 {[%emt 0:04:33]} 14. Rac1 {[%emt 0:08:33]} Nde7 {[%emt 0:12:38]} 15. Qc2 {[%emt 0:02:16]} Bd5 {[%emt 0:01:15][%cal Be6d5,Bd5a2,Ba2b3][%mdl 32]} 16. Rfd1 {[%emt 0:05:48]} Qe6 {[%emt 0:03:15]} 17. Rd2 {[%emt 0:10:02]} Bxa2 {[%emt 0:04:52]} 18. Bc3 {[%emt 0:02:18]} Bb3 {[%emt 0:04:34]} 19. Qb1 {[%emt 0:00:21]} a5 {[%emt 0:02:58]} (19... b6 $15) 20. Rb2 $14 {[%emt 0:00:49]} a4 {[%emt 0:00:50]} 21. Nd2 {[%emt 0:00:17]} Bd5 {[%emt 0:03:58]} 22. e4 {[%emt 0:02:01]} (22. Rxb7 $14 Rb8 23. Rb5) 22... Bb3 $1 $11 {[%emt 0:00:07]} 23. Nxb3 {[%emt 0:00:44]} axb3 {[%emt 0:00:05]} 24. Bf1 {[%emt 0:02:28]} b6 {[%emt 0:02:05]} 25. Rxb3 {[%emt 0:00:09]} Kh8 {[%emt 0:01:33]} 26. Rb5 {[%emt 0:01:50]} Ra8 {[%emt 0:01:47]} 27. Qb2 {[%emt 0:00:39]} Rfd8 {[%emt 0:00:21]} 28. Ra1 {[%emt 0:02:11]} (28. Qb3 $11 Qd7 29. Qb2) 28... Nd4 {[%emt 0:01:14]} 29. Bxd4 {[%emt 0:00:05]} Rxd4 {[%emt 0:00:19]} 30. Rc1 {[%emt 0:00:50]} Qd7 {[%emt 0:01:27]} 31. Rb3 {[%emt 0:00:45]} Rd6 {[%emt 0:01:16]} 32. Rbc3 {[%emt 0:03:25]} c5 {[%emt 0:00:50]} 33. Rb3 {[%emt 0:00:01]} Qa7 {[%emt 0:00:59]} 34. Rb1 {[%emt 0:00:17][%cal Rb3b6]} Rb8 {[%emt 0:00:56]} 35. Rb5 {[%emt 0:00:20][%cal Ob5c5]} Rc6 {[%emt 0:03:13]} 36. Bh3 {[%emt 0:01:24]} g5 {[%emt 0:03:12]} ({Better is} 36... Nc8 $14) 37. Qb3 $16 {[%emt 0:00:40] aiming for a4.} Kg7 {[%emt 0:01:29]} (37... Ra8 $16) 38. a4 $18 {[%emt 0:00:56]} h5 {[%emt 0:05:41]} 39. Be6 {[%emt 0:00:34][%cal Oa4a5]} Rd6 {[%emt 0:01:13][%cal Bc6d6,Bd6d5,Bd5d3,Bd3b3][%mdl 32]} 40. Bd5 {[%emt 0:01:04]} (40. a5 $6 Nc6 41. Qa2 (41. axb6 Qe7 $11) (41. Rxb6 Nxa5 42. Rxb8 Nxb3 $11) 41... Nd4 42. Rxb6 Rdxb6 43. Rxb6 (43. axb6 Qxa2 44. Bxa2 Ne2+ 45. Kf1 Nc3 $11) 43... Rxb6 44. axb6 Qxb6 $11) (40. Bc4 $1 $16) 40... Nxd5 $11 {[%emt 0:00:55]} 41. exd5 {[%emt 0:00:02][%cal Oa4a5]} Rbd8 {[%emt 0:00:49]} (41... Qd7 $5 {[%cal Rd6d5]}) 42. a5 {[%emt 0:00:19][%cal Ra5b6]} Rxd5 {[%emt 0:00:30]} 43. axb6 {[%emt 0:00:19]} (43. Rxb6 $5 {[%cal Rb6b7]} Qxa5 44. Rb7+ Kh6 45. Qc4 $14) 43... Qb7 {[%emt 0:00:14]} 44. Ra5 {[%emt 0:00:37]} ({White should try} 44. Qd1 $11) 44... Rxd3 $15 {[%emt 0:00:36]} 45. Ra7 {[%emt 0:01:27]} Qxa7 {[%emt 0:00:11]} 46. bxa7 {[%emt 0:00:14] White wants to mate with Qb7+.} Rxb3 {[%emt 0:00:06]} 47. Rxb3 $17 {[%emt 0:00:05][%mdl 4096] Endgame KR-KR} Rd1+ $1 {[%emt 0:00:05]} 48. Kg2 {[%emt 0:00:08]} Ra1 {[%emt 0:00:03]} 49. Rb7+ {[%emt 0:00:11]} Kg6 {[%emt 0:00:02]} 50. h3 {[%emt 0:00:37]} (50. Kf3 $15 {was preferrable.}) 50... c4 {[%emt 0:00:54]} 51. g4 {[%emt 0:00:49]} c3 {[%emt 0:00:50]} 52. Rc7 {[%emt 0:00:12]} c2 {[%emt 0:00:15]} 53. Rxc2 {[%emt 0:00:05]} ({Of course not} 53. gxh5+ Kxh5 54. Rxc2 Rxa7 $17) 53... Rxa7 {[%emt 0:00:03]} 54. Rc6 {[%emt 0:00:50]} h4 {[%emt 0:00:56]} 55. Rb6 {[%emt 0:00:38]} Kf7 {[%emt 0:00:22]} 56. Rc6 {[%emt 0:00:06]} Ke7 {[%emt 0:00:18]} 57. Rb6 {[%emt 0:00:35]} Rd7 {[%emt 0:00:42]} 58. Ra6 {[%emt 0:00:21]} Rd6 {[%emt 0:00:25]} (58... Rd4 $17 59. Ra7+ Ke6 60. Ra6+ Rd6) 59. Ra5 {[%emt 0:00:09]} (59. Rxd6 $1 $11 {keeps the balance.} Kxd6 60. Kf3) 59... Ke6 {[%emt 0:00:08]} 60. Ra8 {[%emt 0:00:42]} Kd5 {[%emt 0:00:31]} 61. Kf3 {[%emt 0:00:37]} Rb6 {[%emt 0:01:09]} 62. Rd8+ {[%emt 0:00:27]} Ke6 {[%emt 0:00:14]} 63. Ra8 {[%emt 0:00:30]} Rb3+ {[%emt 0:01:57]} 64. Kg2 {[%emt 0:00:02]} Rd3 {[%emt 0:02:08]} 65. Rb8 {[%emt 0:01:06]} e4 {[%emt 0:01:08]} (65... Ra3 $17 66. Rb7 Rd3 67. Rb6+ Ke7) 66. Ra8 {[%emt 0:01:27]} (66. Re8+ $11 Kd5 67. Rd8+ Ke6 68. Re8+ Kd6 69. Rxe4) 66... Rd6 {[%emt 0:01:01]} 67. Re8+ {[%emt 0:01:18]} Kd5 {[%emt 0:00:04]} 68. Re7 {[%emt 0:00:32]} Re6 {[%emt 0:00:17]} 69. Ra7 {[%emt 0:00:32]} e3 {[%emt 0:00:53]} (69... Rc6 $17) 70. Ra5+ {[%emt 0:00:12] [#]} (70. Rd7+ $1 $15 Kc6 71. Rd1) 70... Kc4 {[%emt 0:00:51]} (70... Kd4 $1 $17 {( -> ...e2)} 71. Ra4+ Kc5 72. fxe3 Rxe3) 71. fxe3 $15 {[%emt 0:00:14]} Rxe3 {[%emt 0:00:37]} 72. Rf5 {[%emt 0:00:31]} (72. Ra6 $15 {feels stronger.}) 72... Re6 {[%emt 0:00:28]} (72... Re2+ $17 73. Kg1 Re6) 73. Kf2 {[%emt 0:00:33]} (73. Rf1 $15) 73... Kd3 {[%emt 0:00:14]} 74. Kg2 {[%emt 0:00:05]} Ke4 {[%emt 0:00:25]} 75. Kh2 {[%emt 0:00:20]} Ra6 {[%emt 0:00:07]} 76. Kg2 {[%emt 0:00:10]} Ra2+ {[%emt 0:00:17]} 77. Kg1 {[%emt 0:00:23]} Ra3 {[%emt 0:00:08]} 78. Kg2 {[%emt 0:00:10]} Rg3+ {[%emt 0:00:11]} 79. Kh2 {[%emt 0:00:05]} Rf3 {[%emt 0:00:05]} 80. Ra5 {[%emt 0:00:08]} Rf2+ {[%emt 0:01:43]} 81. Kg1 {[%emt 0:00:02]} Rf4 {[%emt 0:00:59]} 82. Kg2 {[%emt 0:00:18]} Kd4 {[%emt 0:00:55]} 83. Rb5 {[%emt 0:01:11]} Kc4 {[%emt 0:00:29] Prevents Rb4+.} 84. Ra5 {[%emt 0:00:04] [#]} Kb4 {[%emt 0:01:57]} (84... Kd3 $1 $17) 85. Rd5 {[%emt 0:00:03] Weighted Error Value: White=0.14 (very precise) /Black=0.14 (very precise)} 1/2-1/2

[Event "13th KIIT Festival-A 2022"]
[Site "Bhubaneswar"]
[Date "2022.05.24"]
[Round "3.10"]
[White "Laxman, R.R."]
[Black "Ram Aravind L N"]
[Result "1-0"]
[ECO "D02"]
[WhiteElo "2420"]
[BlackElo "2116"]
[Annotator "TA"]
[PlyCount "153"]
[EventDate "2022.05.15"]
[EventType "swiss"]
[EventCountry "IND"]
[SourceTitle "playchess.com"]
[Source "ChessBase"]
[SourceQuality "1"]
[TimeControl "5400+30"]

{[%evp 15,153,20,15,26,23,27,19,11,16,16,10,13,35,32,66,62,71,69,49,57,73,77,117,113,113,106,125,118,119,122,116,100,94,94,97,97,87,95,112,96,149,103,138,136,154,141,156,151,145,98,129,0,131,130,207,139,289,231,228,177,175,174,183,183,214,151,229,176,325,320,406,380,448,379,352,448,428,405,397,383,352,269,2245,2185,1671,1543,29977,29979,29983,29980,29980,29974,29974,29975,29974,29976,29980,29980,29981,29979,29982,29981,29981,29982,29982,29983,29983,29980,29980,29981,29981,29982,29982,29981,29981,29981,29980,29981,29982,29983,29982,29981,29981,29980,29979,29980,29986,29985,29985,29986,29986,29981,29988,29989,29989,29990,29990,29991,29992,29991]} 1. d4 {[%emt 0:00:03]} d5 {[%emt 0:00:18]} 2. Nf3 {[%emt 0:00:09]} Nf6 {[%emt 0:00:10]} 3. c4 {[%emt 0:00:05]} e6 {[%emt 0:00:10]} 4. g3 {[%emt 0:00:33]} b6 {[%emt 0:05:29]} 5. Bg2 {[%emt 0:00:37]} Bb7 {[%emt 0:00:18]} 6. cxd5 {[%emt 0:02:01]} exd5 {[%emt 0:05:43]} 7. Nc3 {[%emt 0:00:18]} Bd6 {[%emt 0:03:46]} 8. O-O {[%emt 0:09:36]} O-O {[%emt 0:06:29] 8...0-0 scores better than 8...a6.} 9. Ne5 {[%emt 0:04:19] D02: 1 d4 d5 2 Nf3 sidelines, including 2...Nf6 3 g3 and 2...Nf6 3 Bf4.} Nbd7 {[%emt 0:04:27]} 10. Bf4 {[%emt 0:03:27]} Re8 {[%emt 0:01:00][%cal Rd7e5]} 11. Nxd7 {[%emt 0:01:27] The position is equal.} Qxd7 {[%emt 0:01:15]} 12. Bxd6 {[%emt 0:00:05]} Qxd6 {[%emt 0:00:17] [#]} 13. Rc1 $146 {[%emt 0:00:09] [#] And now Nb5 would win.} ({Predecessor:} 13. Qc2 a6 14. Rac1 Re7 15. e3 Ne4 16. Ne2 Rae8 17. Nf4 a5 18. Rfe1 Ba6 19. Qc6 Qxc6 20. Rxc6 {1-0 (31) Sarana,A (2649)-Esipenko,A (2087) Sochi 2021}) 13... a6 {[%emt 0:08:00] Against Nb5} 14. a3 {[%emt 0:00:55]} c5 {[%emt 0:09:31]} 15. dxc5 $1 {[%emt 0:01:54]} bxc5 {[%emt 0:00:02]} 16. e4 {[%emt 0:00:18][%cal Re4d5]} d4 {[%emt 0:11:42]} 17. e5 $1 {[%emt 0:00:13]} Qxe5 {[%emt 0:00:44]} 18. Bxb7 {[%emt 0:00:02][%cal Bg2b7,Bb7c6,Bc6a4][%mdl 32]} Ra7 {[%emt 0:01:40]} 19. Bc6 {[%emt 0:04:00]} Re6 {[%emt 0:12:15] [#]} 20. Ba4 {[%emt 0:00:11][%cal Oa4b3] Hoping for Bb3!} dxc3 {[%emt 0:00:11]} 21. Qd8+ {[%emt 0:00:12]} (21. Rxc3 g6 $14) 21... Ne8 {[%emt 0:00:02]} 22. Rxc3 {[%emt 0:01:19]} Rae7 {[%emt 0:06:31]} 23. Qa5 {[%emt 0:05:47] White is more active.} Qd4 {[%emt 0:03:40]} 24. Bxe8 {[%emt 0:01:48]} ({Don't take} 24. Rxc5 Qxb2 25. Bc6 Rf6 $14) 24... Rxe8 {[%emt 0:00:02]} 25. Qxc5 {[%emt 0:00:08]} Qd2 {[%emt 0:02:57]} 26. b4 {[%emt 0:02:34]} g6 {[%emt 0:02:37]} 27. Qc4 {[%emt 0:01:34]} (27. Rf3 {keeps more tension.} Re1 28. Rxe1 Rxe1+ 29. Kg2) 27... Re1 {[%emt 0:03:06]} (27... Rf6 $142 28. Rd3 Qb2) 28. Rf3 {[%emt 0:02:29]} (28. Rd3 $142 Rxf1+ 29. Kxf1 Qe1+ 30. Kg2) 28... R1e6 {[%emt 0:02:31]} 29. Kg2 {[%emt 0:02:03]} h5 {[%emt 0:02:10]} 30. Qf4 {[%emt 0:00:30]} Qd7 {[%emt 0:00:26]} 31. Rc1 {[%emt 0:00:06] Threatens to win with Rc7.} Re5 {[%emt 0:01:26]} 32. Qf6 {[%emt 0:01:10]} ({Better is} 32. Qc4) 32... R5e6 {[%emt 0:02:19]} 33. Qf4 {[%emt 0:00:35]} Re5 $1 {[%emt 0:00:04]} 34. Qc4 {[%emt 0:00:55]} Re4 {[%emt 0:04:03]} (34... Qb7 $16 35. Qc7 (35. Qc6 R8e7 $16) 35... R8e7 36. Qxb7 Rxb7) 35. Qc7 {[%emt 0:02:00]} Qd5 {[%emt 0:00:45] Black cannot hold the game after this.} (35... R8e7 $16 36. Qxd7 Rxd7) 36. Qc6 {[%emt 0:01:27]} Qd2 {[%emt 0:00:31]} 37. h4 {[%emt 0:04:29]} R4e6 {[%emt 0:01:03]} 38. Qc7 {[%emt 0:00:36]} R6e7 {[%emt 0:00:19]} 39. Qc3 $36 {[%emt 0:00:45][%mdl 2048] White is really pushing.} Qd5 {[%emt 0:00:05]} 40. Qc4 {[%emt 0:03:28]} Qd2 {[%emt 0:00:06]} (40... Qb5 $16 41. Kh2 Qxc4 42. Rxc4 Kg7) 41. Rcc3 {[%emt 0:00:34]} Qd1 {[%emt 0:01:49]} (41... Qd6 $142 42. Qc6 Qe6 43. Qxe6 Rxe6) 42. Rcd3 $18 {[%emt 0:00:23]} ({Stronger than} 42. Qxa6 Re1 43. Rf6 Rg1+ 44. Kh2 Rh1+ 45. Kg2 Rf8 $11) 42... Qa1 {[%emt 0:00:23]} 43. Rde3 {[%emt 0:02:02]} Re6 {[%emt 0:00:01]} 44. Rxe6 {[%emt 0:01:09]} Rxe6 {[%emt 0:00:02][%mdl 4096] Endgame KQR-KQR} 45. Qc8+ {[%emt 0:00:01]} Kg7 {[%emt 0:00:03]} 46. Qb7 {[%emt 0:01:13]} Rf6 {[%emt 0:00:52]} 47. Rxf6 {[%emt 0:00:02]} Qxf6 {[%emt 0:00:04] KQ-KQ} 48. a4 {[%emt 0:00:01][%cal Ba3a4,Ba4a5][%mdl 32] Strongly threatening b5.} Qd4 $2 {[%emt 0:00:45]} (48... g5 49. hxg5 Qxg5) 49. a5 {[%emt 0:00:30] White wants to mate with b5.} g5 {[%emt 0:01:49]} 50. hxg5 {[%emt 0:00:04][%cal Bh4g5,Bg5g6,Bg6f7][%mdl 32] b5 is the strong threat.} h4 {[%emt 0:00:03]} 51. g6 {[%emt 0:00:22] White mates.} Kh8 {[%emt 0:00:29]} 52. gxf7 {[%emt 0:00:44][%cal Rf7f8]} Kg7 {[%emt 0:00:14]} 53. Qf3 {[%emt 0:05:56]} Kf8 {[%emt 0:00:01]} 54. b5 {[%emt 0:00:19]} axb5 {[%emt 0:00:19]} 55. a6 {[%emt 0:00:01]} b4 {[%emt 0:00:13]} 56. gxh4 {[%emt 0:01:08]} Qxh4 {[%emt 0:01:08]} 57. Qf5 {[%emt 0:04:04]} Qd4 {[%emt 0:00:18]} 58. Qe6 {[%emt 0:00:15]} Qg7+ {[%emt 0:00:05]} 59. Kf3 {[%emt 0:01:08][%csl Gf7][%cal Re6e8]} Qc3+ {[%emt 0:00:05]} 60. Kg4 {[%emt 0:00:50]} Qd4+ {[%emt 0:00:27]} 61. f4 {[%emt 0:03:41]} Qg1+ {[%emt 0:01:36]} 62. Kf5 {[%emt 0:02:02]} Qc5+ {[%emt 0:00:16]} 63. Ke4 {[%emt 0:03:31]} Qc2+ {[%emt 0:00:03]} 64. Kd4 {[%emt 0:02:45]} Qf2+ {[%emt 0:00:09]} 65. Qe3 {[%emt 0:00:54]} Qb2+ {[%emt 0:00:17]} 66. Kc5 {[%emt 0:00:26]} Kxf7 {[%emt 0:00:49]} 67. a7 {[%emt 0:00:17]} Qa2 {[%emt 0:00:42]} 68. Kxb4 {[%emt 0:00:11]} Qa6 {[%emt 0:00:37]} 69. Qc5 {[%emt 0:00:04]} Qb7+ {[%emt 0:01:36]} 70. Ka5 {[%emt 0:00:03]} Qg2 {[%emt 0:00:35]} 71. Kb6 {[%emt 0:00:22]} Qb2+ {[%emt 0:00:21]} 72. Kc7 {[%emt 0:00:12]} Qa2 {[%emt 0:00:05]} 73. f5 {[%emt 0:00:32]} Qh2+ {[%emt 0:00:53]} 74. Kd7 {[%emt 0:02:18]} Qg2 {[%emt 0:01:34]} 75. Qe7+ {[%emt 0:00:11]} Kg8 {[%emt 0:00:09]} 76. Qe8+ {[%emt 0:00:03]} Kh7 {[%emt 0:00:13]} 77. Qg6+ {[%emt 0:00:02] Weighted Error Value: White=0.15 (very precise) /Black=0.37} 1-0

[Event "13th KIIT Festival-A 2022"]
[Site "Bhubaneswar"]
[Date "2022.05.24"]
[Round "3.11"]
[White "Stupak, Kirill"]
[Black "Alekhya Mukhopadhyay"]
[Result "0-1"]
[ECO "B08"]
[WhiteElo "2440"]
[BlackElo "2162"]
[Annotator "TA"]
[PlyCount "98"]
[EventDate "2022.05.15"]
[EventType "swiss"]
[EventCountry "IND"]
[SourceTitle "playchess.com"]
[Source "ChessBase"]
[SourceQuality "1"]
[TimeControl "5400+30"]

{[%evp 19,98,-16,0,-25,-6,-60,-58,-60,-48,-87,-92,-78,-68,-162,-51,-40,-58,-52,-47,-39,-40,-46,-40,-58,-55,-67,-78,-129,-122,-125,-98,-101,-111,-146,-33,-38,-32,-33,-19,-18,-3,-5,0,0,0,-6,-5,-8,-10,-43,-44,-29,-25,-30,0,0,0,-512,0,0,0,0,0,-8,0,-22,-22,-599,-599,-599,-554,-599,-588,-599,-586,-534,-359,-642,-631,-606,-562]} 1. e4 {[%emt 0:00:14]} g6 {[%emt 0:00:11]} 2. d4 {[%emt 0:00:15]} Bg7 {[%emt 0:00:02]} 3. Nf3 {[%emt 0:00:42]} c6 {[%emt 0:00:11]} 4. Nc3 {[%emt 0:00:28]} d6 {[%emt 0:00:03]} 5. Be3 {[%emt 0:00:48]} Nf6 {[%emt 0:00:10]} 6. Qd2 {[%emt 0:04:25]} O-O {[%emt 0:01:07]} 7. h3 {[%emt 0:01:49]} b5 {[%emt 0:00:37]} 8. a3 {[%emt 0:01:21]} a6 {[%emt 0:01:17]} 9. Be2 {[%emt 0:06:58]} Qc7 {[%emt 0:01:27]} 10. O-O {[%emt 0:05:11]} Nbd7 {[%emt 0:01:06]} 11. Rad1 {[%emt 0:01:56] B08: Pirc Defence: Classical System.} c5 {[%emt 0:09:10] [#]} 12. dxc5 $146 {[%emt 0:12:00]} ({Better is} 12. Bh6 $11) ({Predecessor:} 12. d5 b4 13. axb4 cxb4 14. Na2 a5 15. Bd3 Nc5 16. Bxc5 Qxc5 17. Rfe1 Nd7 18. c3 bxc3 19. Nxc3 {0-1 (45) Belus,B (1961)-Petran,P (2306) Tatranske Zruby 2016}) 12... Nxc5 $15 {[%emt 0:02:47]} 13. Bxc5 {[%emt 0:06:20] Black is slightly better.} Qxc5 {[%emt 0:00:30]} 14. Bd3 {[%emt 0:00:49]} Bb7 {[%emt 0:02:51]} 15. Rfe1 {[%emt 0:01:22]} Nd7 {[%emt 0:00:20]} 16. Nd5 {[%emt 0:09:05]} ({White should play} 16. Rb1 $15) 16... Rfe8 {[%emt 0:05:58]} (16... Bxb2 $19 {Strongly threatening ...e6.} 17. Nxe7+ Kg7) 17. b4 {[%emt 0:13:55]} Qc8 {[%emt 0:00:24]} 18. Qg5 {[%emt 0:02:52]} Bxd5 {[%emt 0:01:11]} 19. exd5 {[%emt 0:00:24]} Bf6 {[%emt 0:00:22]} 20. Qh6 {[%emt 0:02:33]} Qc7 {[%emt 0:03:46]} 21. Re4 {[%emt 0:02:58]} Bg7 {[%emt 0:00:29]} 22. Qg5 {[%emt 0:04:03]} Nf6 {[%emt 0:00:39]} 23. Rd4 {[%emt 0:00:39]} (23. Ree1 $142) 23... Qc3 $17 {[%emt 0:00:17]} 24. Qc1 {[%emt 0:05:28]} Rec8 {[%emt 0:01:05]} 25. Re1 {[%emt 0:00:58]} Ra7 {[%emt 0:01:52]} 26. g4 {[%emt 0:01:04] [#]} a5 {[%emt 0:04:12]} (26... Rac7 $1 $17 {Threatens to win with ...Nd7.} 27. Rd1 Nd7) 27. g5 $15 {[%emt 0:02:38]} Nd7 {[%emt 0:00:52][%cal Bf6d7,Bd7b6,Bb6d5,Bd5b4,Bb4d3][%mdl 32]} 28. Rde4 {[%emt 0:00:59]} axb4 {[%emt 0:00:50]} 29. axb4 {[%emt 0:00:32]} Nb6 {[%emt 0:04:41]} 30. Qe3 {[%emt 0:02:07]} Rb7 {[%emt 0:00:03]} 31. Rxe7 {[%emt 0:03:24]} Rxe7 {[%emt 0:04:15]} 32. Qxe7 {[%emt 0:00:04]} Nxd5 {[%emt 0:00:07]} 33. Qxd6 {[%emt 0:01:48]} Nxb4 {[%emt 0:01:29]} 34. Qd7 {[%emt 0:01:30]} Nxd3 {[%emt 0:01:23]} (34... Nxc2 $2 35. Rc1 $18) 35. cxd3 {[%emt 0:00:08]} b4 {[%emt 0:00:14] [#] And now ...b3 would win.} 36. Kg2 {[%emt 0:02:27]} ({Much worse is} 36. Re8+ Rxe8 37. Qxe8+ Bf8 $17) 36... b3 {[%emt 0:01:59]} 37. Re8+ {[%emt 0:02:10]} Rxe8 {[%emt 0:00:06]} 38. Qxe8+ $11 {[%emt 0:00:02][%mdl 4096] Endgame KQB-KQN} Bf8 {[%emt 0:00:08]} 39. Ne5 {[%emt 0:00:24]} Qc7 {[%emt 0:00:14]} 40. Nd7 {[%emt 0:01:44][%csl Gd7][%cal Re8f8]} ({Avoid the trap} 40. Nc4 $2 Qb7+ 41. Kh2 b2 42. Nxb2 Qxb2 $19) 40... Qd6 {[%emt 0:00:19]} 41. Nf6+ {[%emt 0:01:17]} Kg7 {[%emt 0:03:17] Hoping for ...h5.} 42. Qb5 {[%emt 0:00:18] aiming for Ne8+.} (42. Qe4 $5 {[%cal Rf6e8]} Qe6 43. Ne8+ Kh8 44. Qd4+ Kg8 45. Nf6+ Kh8 46. Nh5+ Kg8 47. Nf6+ Kh8 48. Nh5+ Kg8 49. Nf6+ $11) 42... Qc5 {[%emt 0:01:08]} 43. Ne8+ $2 {[%emt 0:00:39][%mdl 8192] Loses the game.} (43. Qxb3 $11 {and White is okay.} Qxg5+ 44. Ng4) 43... Kh8 $19 {[%emt 0:00:17]} 44. Qxb3 {[%emt 0:00:59] Black must now prevent Qb2+.} Qc6+ {[%emt 0:00:07]} 45. Kf1 {[%emt 0:00:09]} Qxe8 {[%emt 0:00:03]} 46. Qc3+ {[%emt 0:00:21]} Bg7 {[%emt 0:00:11]} 47. Qc7 {[%emt 0:00:16]} Kg8 {[%emt 0:00:03]} 48. Qd6 $2 {[%emt 0:00:25]} (48. h4) 48... Qe5 {[%emt 0:00:28]} 49. Qd8+ {[%emt 0:00:20]} Bf8 {[%emt 0:00:03] Weighted Error Value: White=0.40/Black=0.15 (very precise)} 0-1